[Event "1st Serbian League 2022"]
[Site "Vrnjacka Banja"]
[Date "2022.09.28"]
[Round "9.22"]
[White "Djukic, Nikola"]
[Black "Roganovic, Milos"]
[Result "1/2-1/2"]
[ECO "B38"]
[WhiteElo "2536"]
[BlackElo "2487"]
[Annotator "TA"]
[PlyCount "52"]
[EventDate "2022.09.20"]
[EventType "team-tourn"]
[EventCountry "SRB"]
[SourceTitle "playchess.com"]
[Source "ChessBase"]
[SourceQuality "1"]
[TimeControl "40/5400+30:1800+30"]

{[%evp 17,52,37,42,30,29,39,28,36,61,25,12,25,58,28,28,35,36,24,36,18,35,38,39,37,39,36,37,30,29,22,42,41,29,32,32,0,4]} 1. e4 {[%emt 0:00:02]} c5 {[%emt 0:00:09]} 2. Nf3 {[%emt 0:00:06]} Nc6 {[%emt 0:00:03]} 3. d4 {[%emt 0:00:06]} cxd4 {[%emt 0:00:05]} 4. Nxd4 {[%emt 0:00:05]} g6 {[%emt 0:01:08]} 5. c4 {[%emt 0:00:14]} Nf6 {[%emt 0:00:45]} 6. Nc3 {[%emt 0:00:15]} d6 {[%emt 0:00:35]} 7. f3 {[%emt 0:00:17]} Bg7 {[%emt 0:02:14]} 8. Be3 {[%emt 0:00:14]} O-O {[%emt 0:00:08]} 9. Be2 {[%emt 0:00:10]} Nd7 {[%emt 0:02:50]} 10. Qd2 {[%emt 0:04:42] B38: Sicilian: Maroczy Bind with 5...Bg7 and 7...0-0.} Nxd4 {[%emt 0:01:40]} 11. Bxd4 {[%emt 0:00:09]} Bxd4 {[%emt 0:00:06]} 12. Qxd4 {[%emt 0:00:06] White has an edge.} Qb6 {[%emt 0:00:20]} 13. O-O-O {[%emt 0:21:21] White is more active.} Qxd4 {[%emt 0:03:24]} 14. Rxd4 {[%emt 0:00:09]} Nf6 {[%emt 0:01:20] [#]} 15. Nd5 $146 {[%emt 0:07:25]} ({Predecessor:} 15. f4 Be6 16. b3 Rac8 17. Kb2 Kg7 18. Bf3 b6 19. Re1 Rfd8 20. f5 Bd7 21. g4 {1-0 (36) Juarez Flores,C (2419)-Sanchez,J (2107) Managua 2015}) 15... Nxd5 {[%emt 0:01:00]} 16. exd5 {[%emt 0:00:10]} Bd7 {[%emt 0:07:05]} 17. Re1 {[%emt 0:00:19]} Rac8 {[%emt 0:07:45]} 18. Bd3 {[%emt 0:03:26]} e5 {[%emt 0:20:03]} 19. dxe6 $1 {[%emt 0:00:13]} Bxe6 {[%emt 0:00:04]} 20. Kb1 {[%emt 0:03:58]} Rfd8 {[%emt 0:02:07]} 21. Rd1 {[%emt 0:00:16]} Kf8 {[%emt 0:02:03]} 22. b3 {[%emt 0:00:41]} Ke7 {[%emt 0:00:49]} 23. Be4 {[%emt 0:00:26]} b6 {[%emt 0:00:13]} 24. Kb2 {[%emt 0:07:12]} Rc5 {[%emt 0:07:27]} 25. a4 {[%emt 0:07:18]} f5 {[%emt 0:03:42]} 26. Bd3 {[%emt 0:07:44]} a5 {[%emt 0:05:19] Weighted Error Value: White=0.11 (very precise) /Black=0.05 (flawless)} 1/2-1/2

[Event "1st Serbian League 2022"]
[Site "Vrnjacka Banja"]
[Date "2022.09.28"]
[Round "9.23"]
[White "Zajic, Milan"]
[Black "Strikovic, Aleksa"]
[Result "1-0"]
[ECO "B07"]
[WhiteElo "2402"]
[BlackElo "2491"]
[Annotator "TA"]
[PlyCount "119"]
[EventDate "2022.09.20"]
[EventType "team-tourn"]
[EventCountry "SRB"]
[SourceTitle "playchess.com"]
[Source "ChessBase"]
[SourceQuality "1"]
[TimeControl "40/5400+30:1800+30"]

{[%evp 10,119,37,33,58,41,44,29,45,35,57,25,40,22,36,22,39,20,55,51,47,49,63,28,77,69,87,32,52,29,67,69,87,42,45,45,49,62,62,9,35,35,35,35,35,48,45,39,144,117,98,101,116,114,114,108,208,190,194,197,214,193,227,226,212,131,109,30,35,40,51,52,77,0,0,0,0,0,68,68,68,60,72,79,125,120,411,383,420,429,427,401,550,550,674,702,681,667,631,572,650,545,1641,1380,1453,1555,29979,29980,29980,29981,29980,29981]} 1. e4 {[%emt 0:00:03]} d6 {[%emt 0:00:04]} 2. d4 {[%emt 0:00:05]} Nf6 {[%emt 0:00:04]} 3. Nc3 {[%emt 0:00:06]} e5 {[%emt 0:00:03]} 4. dxe5 {[%emt 0:00:07]} dxe5 {[%emt 0:00:05]} 5. Qxd8+ {[%emt 0:00:05]} Kxd8 {[%emt 0:00:05]} 6. Bc4 {[%emt 0:00:16]} Ke8 {[%emt 0:00:04] The modern move. B07: Pirc Defence: Miscellaneous Systems.} 7. f4 {[%emt 0:00:06]} Bb4 {[%emt 0:00:05]} 8. Bd3 {[%emt 0:00:14]} Nc6 {[%emt 0:00:25] White has an edge.} 9. Nf3 {[%emt 0:00:12]} Bg4 {[%emt 0:00:12]} 10. fxe5 {[%emt 0:20:55]} (10. a3 $5 {[%cal Ra3b4]} Bd6 11. Nb5 $14) 10... Nd7 {[%emt 0:01:05]} 11. Bf4 {[%emt 0:00:30]} Bxf3 {[%emt 0:14:48]} 12. gxf3 {[%emt 0:00:03]} Ncxe5 {[%emt 0:00:10]} 13. Be2 {[%emt 0:02:52]} c6 {[%emt 0:01:06] [#]} 14. Be3 $146 {[%emt 0:09:42]} ({Predecessor:} 14. O-O-O Ng6 15. Bg3 h5 16. h4 Bc5 17. Kb1 Be3 18. Bf1 Nde5 19. Bh3 Rd8 20. Rxd8+ Kxd8 {½-½ (37) Bok,B (2592)-Kuipers,S (2404) Netherlands 2017}) 14... Bc5 {[%emt 0:06:14]} 15. Bd2 {[%emt 0:01:35]} Nb6 {[%emt 0:00:24]} 16. b3 {[%emt 0:00:47]} f6 {[%emt 0:00:54]} (16... Ng6 $11) 17. f4 $16 {[%emt 0:03:54]} Nf7 {[%emt 0:01:19]} 18. h4 {[%emt 0:06:30]} (18. O-O-O $16) 18... Rd8 {[%emt 0:06:28]} 19. Rh2 {[%emt 0:09:06]} g6 {[%emt 0:04:09]} 20. O-O-O {[%emt 0:09:27]} Nd7 {[%emt 0:07:32]} 21. Nb1 {[%emt 0:03:27]} Ke7 {[%emt 0:01:39]} 22. Rh3 {[%emt 0:03:47]} Rhe8 {[%emt 0:03:53]} 23. Rf1 {[%emt 0:05:41]} Nf8 {[%emt 0:11:02]} 24. h5 {[%emt 0:02:03]} (24. Bd3 $14) 24... Kd7 {[%emt 0:03:34]} (24... Ne6 $5 {[%cal Rg6g5]}) 25. Bd3 {[%emt 0:05:28]} Kc8 {[%emt 0:03:27]} 26. Bc3 {[%emt 0:01:28]} Bd4 {[%emt 0:00:17]} 27. Bxd4 {[%emt 0:00:35]} Rxd4 {[%emt 0:00:03]} 28. Nd2 {[%emt 0:01:17]} g5 {[%emt 0:03:29]} (28... b5 $14) 29. Rg3 {[%emt 0:02:04][%cal Bh3g3,Bg3g7,Bg7h7][%mdl 32]} gxf4 {[%emt 0:08:42]} 30. Rxf4 {[%emt 0:00:04]} Nd7 {[%emt 0:00:39]} 31. Nf3 {[%emt 0:03:24]} Rd6 {[%emt 0:00:30]} 32. Rg7 {[%emt 0:01:50]} Nfe5 {[%emt 0:02:08]} (32... Ng5 $16) 33. Nxe5 $18 {[%emt 0:00:13]} Nxe5 {[%emt 0:00:04]} 34. Bf1 {[%emt 0:00:20]} h6 {[%emt 0:05:27]} 35. Rh7 {[%emt 0:00:59] Against Rh8} Rg8 {[%emt 0:01:38]} 36. Rxh6 {[%emt 0:00:56]} Rg5 {[%emt 0:00:03]} 37. Rh7 {[%emt 0:00:54] Strongly threatening Bh3+.} Rg1 {[%emt 0:00:27]} 38. h6 {[%emt 0:01:46]} (38. Kb2 $16 {Threatens to win with Bh3+.} Rh1 39. Kc3) 38... Rh1 $11 {[%emt 0:00:10] Prevents Bh3+.} 39. Kb2 {[%emt 0:05:40]} Rh2 {[%emt 0:00:22]} 40. Kc3 {[%emt 0:01:14]} a5 {[%emt 0:01:50]} 41. a4 {[%emt 0:08:29]} ({White should try} 41. Rf5 $16) 41... Kb8 {[%emt 0:00:11]} 42. Rf5 {[%emt 0:04:53]} Ka7 {[%emt 0:02:24]} 43. Rh8 {[%emt 0:03:43]} Kb6 {[%emt 0:07:04]} ({Black should play} 43... c5 $11 44. Bd3 Ng6) 44. h7 $14 {[%emt 0:03:42]} Nf7 {[%emt 0:07:29]} 45. Ra8 {[%emt 0:04:24]} Rxh7 {[%emt 0:02:45]} 46. Rfxa5 {[%emt 0:03:54] White is more active.} Ne5 {[%emt 0:00:59] [#]} (46... Rd1 $142 47. Be2 Rh3+ 48. Kb2 Rd2) 47. R5a7 $1 $16 {[%emt 0:00:58] Black must now prevent a5+.} Rd1 $2 {[%emt 0:01:45][%mdl 8192] [#] This costs Black the game.} (47... Rdd7 $16 {was called for.}) 48. a5+ $1 $18 {[%emt 0:00:12]} Kc5 {[%emt 0:09:05]} 49. b4+ {[%emt 0:00:10]} Kd6 {[%emt 0:00:01]} 50. Rd8+ {[%emt 0:01:24]} Nd7 {[%emt 0:00:22]} 51. Be2 {[%emt 0:00:39]} Kc7 {[%emt 0:02:11]} 52. Bxd1 {[%emt 0:01:37]} Kxd8 {[%emt 0:00:02]} 53. Rxb7 {[%emt 0:00:09][%mdl 4096] Endgame KRB-KRN} Kc8 {[%emt 0:00:05]} 54. a6 {[%emt 0:00:21][%cal Ba5a6,Ba6a7][%mdl 32] aiming for Bg4.} Rh3+ {[%emt 0:00:37]} 55. Kd4 {[%emt 0:00:49] Threatening mate with Bg4.} Ne5 {[%emt 0:01:35] Inhibits Bg4+.} 56. Rg7 {[%emt 0:00:49]} Kb8 {[%emt 0:00:25]} 57. Be2 {[%emt 0:00:54]} Ka8 {[%emt 0:03:03]} 58. Kc5 {[%emt 0:00:44] White mates.} Rh8 {[%emt 0:00:07]} 59. a7 {[%emt 0:01:34]} Rd8 {[%emt 0:01:44]} 60. Kb6 {[%emt 0:00:13] Weighted Error Value: White=0.12 (very precise) /Black=0.39} 1-0

[Event "1st Serbian League 2022"]
[Site "Vrnjacka Banja"]
[Date "2022.09.28"]
[Round "9.24"]
[White "Perunovic, Miodrag"]
[Black "Stankovic, Milos"]
[Result "1/2-1/2"]
[ECO "B62"]
[WhiteElo "2413"]
[BlackElo "2439"]
[Annotator "TA"]
[PlyCount "55"]
[EventDate "2022.09.20"]
[EventType "team-tourn"]
[EventCountry "SRB"]
[SourceTitle "playchess.com"]
[Source "ChessBase"]
[SourceQuality "1"]
[TimeControl "40/5400+30:1800+30"]

{[%evp 19,55,0,0,-2,0,0,0,0,0,0,0,0,34,42,30,0,0,0,0,0,0,0,0,0,0,0,0,0,0,0,0,0,0,0,0,0,0,0]} 1. e4 {[%emt 0:01:04]} c5 {[%emt 0:01:09]} 2. Nf3 {[%emt 0:01:37]} d6 {[%emt 0:00:31]} 3. d4 {[%emt 0:01:21]} cxd4 {[%emt 0:00:31]} 4. Nxd4 {[%emt 0:00:10]} Nf6 {[%emt 0:00:30]} 5. Nc3 {[%emt 0:00:11]} Nc6 {[%emt 0:00:32]} 6. Bg5 {[%emt 0:03:06]} e6 {[%emt 0:02:28]} 7. Bb5 {[%emt 0:02:54]} Bd7 {[%emt 0:07:30]} 8. Bxc6 {[%emt 0:00:37]} bxc6 {[%emt 0:01:31]} 9. Qf3 {[%emt 0:00:12]} h6 {[%emt 0:00:27]} 10. Bh4 {[%emt 0:10:09]} c5 {[%emt 0:04:30]} 11. Nb3 {[%emt 0:08:14] B62: Sicilian: Richter-Rauzer: 6...e6: Unusual White 7th moves.} Be7 {[%emt 0:05:40][%cal Bf8e7,Be7f6,Bf6e5][%mdl 32]} 12. O-O-O {[%emt 0:03:08][%cal Oe4e5] [#] Black must now prevent e5!} Rc8 {[%emt 0:11:23]} 13. Bxf6 {[%emt 0:10:34] [#]} Bxf6 $146 {[%emt 0:02:29]} ({Predecessor:} 13... gxf6 14. Nd2 c4 15. Qe2 Qc7 16. Nf1 Qc5 17. Ne3 Bd8 18. Qd2 Rc6 19. Rhe1 Kf8 {1-0 (34) Sammalvuo,T (2280)-Hjelm,N (2330) Stockholm 1994}) 14. Rxd6 {[%emt 0:04:02]} Be5 {[%emt 0:01:27] A strong pair of Bishops.} 15. Rd2 {[%emt 0:07:18]} Qc7 {[%emt 0:01:07]} (15... c4 $5 {[%cal Rc4b3]} 16. Rhd1 cxb3 17. Rxd7 Qg5+ 18. Kb1 bxc2+ 19. Kxc2 O-O $11) 16. g3 {[%emt 0:04:04]} Bf6 {[%emt 0:08:57]} 17. Qe3 {[%emt 0:02:34]} (17. h4 $5 {[%cal Rh1d1]}) 17... c4 {[%emt 0:04:27] The position is equal.} 18. Nd4 {[%emt 0:06:38] [#] Hoping for Ndb5.} Rb8 {[%emt 0:01:30] Inhibits Ndb5.} 19. e5 {[%emt 0:12:49]} Bg5 {[%emt 0:08:50]} 20. f4 {[%emt 0:00:13]} Qb7 {[%emt 0:02:11][%csl LRb2,LRh1]} 21. b3 {[%emt 0:07:16] Active counter play!} Qxh1+ {[%emt 0:03:32]} 22. Rd1 {[%emt 0:00:03]} Qg2 {[%emt 0:01:39]} 23. Rd2 {[%emt 0:02:01]} Qh1+ {[%emt 0:01:51]} 24. Rd1 {[%emt 0:00:16]} Qg2 {[%emt 0:01:01]} 25. fxg5 {[%emt 0:05:39] Threatens to win with Ne4.} hxg5 {[%emt 0:00:05]} ({Don't take} 25... Qxh2 26. Nf3 Qxg3 27. Ne4 $16 (27. Rxd7 Kxd7 28. Ne4 Qg2 $18)) 26. Rd2 {[%emt 0:01:00]} Qh1+ {[%emt 0:11:53]} 27. Rd1 {[%emt 0:00:02]} Qg2 {[%emt 0:00:06]} 28. Rd2 $1 {[%emt 0:00:14] Weighted Error Value: White=0.02 (flawless) /Black=0.02 (flawless)} 1/2-1/2

[Event "1st Serbian League 2022"]
[Site "Vrnjacka Banja"]
[Date "2022.09.28"]
[Round "9.25"]
[White "Risteski, Emil"]
[Black "Sanal, Vahap"]
[Result "1/2-1/2"]
[ECO "C54"]
[WhiteElo "2364"]
[BlackElo "2595"]
[Annotator "TA"]
[PlyCount "214"]
[EventDate "2022.09.20"]
[EventType "team-tourn"]
[EventCountry "SRB"]
[SourceTitle "playchess.com"]
[Source "ChessBase"]
[SourceQuality "1"]
[TimeControl "40/5400+30:1800+30"]

{[%evp 11,214,15,24,19,15,16,27,12,16,21,37,25,35,15,31,20,29,20,31,16,50,0,6,0,31,0,0,0,50,53,52,46,49,54,108,99,118,108,135,125,125,124,124,93,150,138,137,152,203,187,439,435,421,441,450,466,464,437,449,427,459,456,434,437,425,394,617,456,447,441,414,414,423,300,300,300,300,300,300,268,270,297,320,314,302,304,265,167,167,167,167,167,192,192,192,167,246,229,250,239,262,254,258,258,258,258,255,255,246,165,197,71,80,80,80,16,16,16,16,16,16,16,18,18,18,0,16,16,16,0,16,0,18,17,17,17,72,80,80,80,81,81,256,24,24,22,22,22,22,22,22,22,17,0,0,0,0,0,0,0,0,0,0,0,0,0,0,0,0,0,0,0,0,0,0,0,0,0,0,0,0,0,0,0,0,0,0,0,0,0,0,0,0,0,0,0,0,0,0,0,0,0,0,0,0]} 1. e4 {[%emt 0:00:14]} e5 {[%emt 0:01:33]} 2. Nf3 {[%emt 0:00:08]} Nc6 {[%emt 0:00:07]} 3. Bc4 {[%emt 0:00:06]} Bc5 {[%emt 0:00:17]} 4. O-O {[%emt 0:00:40]} Nf6 {[%emt 0:00:13]} 5. d3 {[%emt 0:00:18]} d6 {[%emt 0:00:14]} 6. c3 {[%emt 0:00:12]} a6 {[%emt 0:00:09]} 7. a4 {[%emt 0:00:31] C54: Giuoco Piano: 4 c3 Nf6, main lines with 5 d4 and 5 d3.} Ba7 {[%emt 0:00:17]} 8. Re1 {[%emt 0:00:38]} O-O {[%emt 0:00:19]} 9. h3 {[%emt 0:00:23] White has an edge.} h6 {[%emt 0:00:13]} 10. Nbd2 {[%emt 0:00:45]} Ne7 {[%emt 0:06:08]} 11. Bb3 $1 {[%emt 0:07:12][%mdl 4] is recently more successful than 11.Nf1.} Ng6 {[%emt 0:00:45]} 12. d4 {[%emt 0:00:27]} Re8 {[%emt 0:01:47]} 13. Bc2 {[%emt 0:06:27]} Nh5 {[%emt 0:01:55]} 14. Nf1 {[%emt 0:04:18]} Qf6 {[%emt 0:02:00]} 15. Ne3 {[%emt 0:10:50]} Nhf4 {[%emt 0:05:40]} 16. Ng4 {[%emt 0:17:59]} (16. Nf5 $1 $14) 16... Qe7 {[%emt 0:04:28] [#]} 17. Ne3 $146 {[%emt 0:08:06]} ({Predecessor:} 17. Be3 h5 18. Ngh2 Qf6 19. h4 c5 20. d5 c4 21. g3 Nxh4 22. gxh4 Qg6+ 23. Ng5 Bxe3 24. fxe3 Nh3+ 25. Kf1 f6 26. Ngf3 Qg3 27. Qd2 f5 28. exf5 e4 29. Qg2 Qxg2+ 30. Kxg2 {1-0 (30) Bilguun,S (2490)-Dragun,K (2594) Biel 2018}) 17... Qf6 {[%emt 0:16:33]} 18. Ng4 {[%emt 0:01:23]} Qe7 {[%emt 0:00:53]} 19. Ne3 {[%emt 0:00:21]} a5 {[%emt 0:02:49]} (19... Qf6 $11) 20. Nf5 $14 {[%emt 0:06:48]} Qf6 {[%emt 0:00:08]} 21. Kh2 {[%emt 0:01:04][%cal Bg1h2,Bh2g2,Bg2h1][%mdl 32]} Ne6 {[%emt 0:05:13]} 22. Be3 {[%emt 0:01:43]} Ngf4 {[%emt 0:00:28]} (22... Nef8 $14) 23. g3 $16 {[%emt 0:02:50]} Ng6 {[%emt 0:00:13]} 24. Kg2 $1 {[%emt 0:02:58]} Ngf8 {[%emt 0:01:59]} 25. Nh2 {[%emt 0:01:24] White is more active.} Qg6 {[%emt 0:01:57]} 26. h4 {[%emt 0:01:25]} h5 {[%emt 0:01:36]} 27. Kh1 {[%emt 0:02:34]} Nh7 {[%emt 0:02:33]} (27... Kh8 $142) 28. Rg1 {[%emt 0:00:39]} Nf6 {[%emt 0:06:11]} 29. g4 $1 {[%emt 0:00:33]} Qh7 {[%emt 0:00:31]} (29... Kh8 $16 {was called for.}) 30. Qf3 $1 $18 {[%emt 0:04:15][%cal Of5h6]} Kh8 $2 {[%emt 0:04:56] [#]} (30... exd4 31. cxd4 Nxd4 32. Nxd4 hxg4 33. Nxg4 Qxh4+ 34. Nh2 Nxe4) 31. Nxg7 $1 {[%emt 0:02:10][%mdl 512]} Nxg7 {[%emt 0:00:43]} (31... Qxg7 $2 32. gxh5 Nxh5 33. Rxg7 Nexg7 34. Rg1) 32. Qxf6 {[%emt 0:00:09]} Qg6 {[%emt 0:00:55]} 33. Qxg6 {[%emt 0:02:43]} fxg6 {[%emt 0:00:02]} 34. gxh5 {[%emt 0:00:56]} gxh5 {[%emt 0:00:05]} 35. Rg6 {[%emt 0:04:23]} Re6 {[%emt 0:00:05]} 36. Rg5 {[%emt 0:00:15]} Re7 {[%emt 0:00:47]} 37. Rag1 {[%emt 0:02:57]} Be6 {[%emt 0:00:29]} 38. Rg6 {[%emt 0:00:55]} exd4 {[%emt 0:02:25]} (38... Rf8 $142 39. Rh6+ Kg8 40. Rxh5 Bc4) 39. Bg5 {[%emt 0:00:55]} Rf7 {[%emt 0:00:14]} 40. Bf6 {[%emt 0:00:19]} Rxf6 {[%emt 0:00:52]} 41. Rxf6 {[%emt 0:30:04] Rh6+ is the strong threat.} Re8 {[%emt 0:30:22]} 42. Rh6+ {[%emt 0:01:53]} Kg8 {[%emt 0:00:21] [#]} 43. Rxe6 $1 {[%emt 0:00:12][%mdl 512]} Rxe6 {[%emt 0:00:07]} 44. Bb3 {[%emt 0:00:01]} Kh8 {[%emt 0:02:29]} 45. Rxg7 {[%emt 0:07:12]} Kxg7 {[%emt 0:00:33]} 46. Bxe6 {[%emt 0:00:05]} Kf6 {[%emt 0:00:06]} 47. Bc8 {[%emt 0:00:00]} dxc3 {[%emt 0:00:00]} 48. bxc3 {[%emt 0:00:00]} b5 {[%emt 0:00:00]} 49. Nf3 {[%emt 0:00:00]} bxa4 {[%emt 0:00:00]} 50. Ba6 {[%emt 0:00:00]} Bxf2 {[%emt 0:00:00]} 51. Kg2 {[%emt 0:00:00]} Be3 {[%emt 0:00:00] [#]} 52. Kf1 $1 {[%emt 0:00:00]} a3 {[%emt 0:00:00]} 53. Bc4 {[%emt 0:00:00]} Bf4 {[%emt 0:00:00]} (53... Ke7 {is a better defense.} 54. Ke2 Bh6) 54. Ke2 {[%emt 0:00:00]} Bg3 {[%emt 0:00:00]} 55. Ke3 {[%emt 0:00:00]} c6 {[%emt 0:00:00]} 56. Ba2 {[%emt 0:00:00]} Kg6 {[%emt 0:00:00]} 57. Bb3 {[%emt 0:00:00]} Kf6 {[%emt 0:00:00]} 58. Bc4 {[%emt 0:00:00]} Kg6 {[%emt 0:00:00]} 59. Ba2 {[%emt 0:00:00]} Kf6 {[%emt 0:00:00]} 60. Bb1 {[%emt 0:00:00]} Kf7 {[%emt 0:00:00]} 61. Nd4 {[%emt 0:00:00]} (61. Kd4 $18 {is more deadly.}) 61... Bxh4 {[%emt 0:00:00]} 62. Nxc6 {[%emt 0:00:00]} Be1 {[%emt 0:02:30]} 63. Nxa5 {[%emt 0:00:00]} (63. Ba2+ $16 Kf6 64. Nxa5) 63... Bxc3 $11 {[%emt 0:01:08]} 64. Nc4 {[%emt 0:00:00][%csl LRa3,LRd6]} Bb4 $1 {[%emt 0:01:27]} 65. Ba2 {[%emt 0:00:00][%csl LRa3,LRd6] aiming for Nxa3+.} Kf6 {[%emt 0:01:34]} 66. Kf4 {[%emt 0:00:00]} Bc5 {[%emt 0:00:33]} 67. Nd2 {[%emt 0:00:00]} Bd4 {[%emt 0:00:33]} 68. Nc4 {[%emt 0:00:40]} Bc5 {[%emt 0:00:46]} 69. Bb3 {[%emt 0:00:22]} Bb4 {[%emt 0:00:09]} 70. Ba2 {[%emt 0:00:39]} Bc5 {[%emt 0:00:18]} 71. Nd2 {[%emt 0:00:17]} Bd4 {[%emt 0:00:56]} 72. Nf3 {[%emt 0:00:20]} Bf2 {[%emt 0:03:25]} 73. Bb1 {[%emt 0:00:45]} h4 {[%emt 0:02:49]} (73... Ke7 $11) 74. Kg4 {[%emt 0:01:19]} Ke6 {[%emt 0:00:55]} 75. Ba2+ {[%emt 0:00:15]} Kf6 {[%emt 0:00:06]} 76. Kh3 {[%emt 0:02:01]} Kg6 $2 {[%emt 0:07:54] [#]} (76... Bg3 $16 {was worth a try.} 77. Bb3 Bf2) 77. Nxh4+ $2 {[%emt 0:00:08]} ({White has to play} 77. Kg2 $1 $18 {[%cal Rg2f2]} Bg3 78. Nd4) 77... Kg5 $1 {[%emt 0:00:04]} 78. Ng2 {[%emt 0:00:16] Threatens to win with Bd5.} Kf6 $1 {[%emt 0:00:08] The position is equal.} 79. Kg4 {[%emt 0:00:49] Strongly threatening Kf3.} Ke5 $1 {[%emt 0:00:03]} 80. Kf3 {[%emt 0:00:16]} Bc5 $1 {[%emt 0:03:37]} 81. Nf4 {[%emt 0:01:10] Hoping for Ne6.} Kd4 $1 {[%emt 0:00:58]} 82. Ne6+ {[%emt 0:02:33]} Kc3 $1 {[%emt 0:00:11]} 83. Nxc5 {[%emt 0:00:55]} dxc5 {[%emt 0:07:20][%mdl 4096] Endgame KB-KPP} 84. e5 {[%emt 0:00:16] Ke4 would kill now.} Kb2 $1 {[%emt 0:00:03]} 85. e6 {[%emt 0:00:30]} Kxa2 {[%emt 0:00:05] KPP-KP} 86. e7 {[%emt 0:00:02]} Kb2 {[%emt 0:00:12]} 87. e8=Q {[%emt 0:00:06]} a2 {[%emt 0:00:04]} 88. Qb5+ {[%emt 0:02:09]} Kc2 {[%emt 0:00:39]} 89. Qa4+ {[%emt 0:00:07]} Kb2 {[%emt 0:00:03]} 90. Qb5+ {[%emt 0:00:06]} Kc2 {[%emt 0:00:17]} 91. Qxc5+ {[%emt 0:02:53]} Kb2 {[%emt 0:00:07]} 92. Qb4+ {[%emt 0:00:08]} Kc2 {[%emt 0:01:16]} 93. Qd4 {[%emt 0:00:50] Threatening mate with Ke3.} Kb1 {[%emt 0:00:02]} 94. Qb4+ {[%emt 0:00:21]} Kc2 {[%emt 0:00:06]} 95. Qa3 {[%emt 0:00:52]} Kb1 {[%emt 0:00:02]} 96. Qb3+ {[%emt 0:00:32]} Ka1 {[%emt 0:00:04]} 97. Qc3+ {[%emt 0:00:39]} Kb1 {[%emt 0:00:04]} 98. Qe1+ {[%emt 0:01:54]} Kb2 {[%emt 0:00:04]} 99. Qe2+ {[%emt 0:00:07]} Kb1 {[%emt 0:00:03]} 100. Qd3+ {[%emt 0:00:09]} Kb2 {[%emt 0:00:06]} 101. Ke2 {[%emt 0:00:37] Intending Qb5+ and mate.} a1=Q {[%emt 0:00:03] KQ-KQ} 102. Qd4+ {[%emt 0:01:12]} Kb1 {[%emt 0:00:10]} 103. Qe4+ {[%emt 0:00:15]} Ka2 {[%emt 0:00:23]} 104. Qc4+ {[%emt 0:00:18]} Ka3 {[%emt 0:00:16]} 105. Qa6+ {[%emt 0:00:23]} Kb2 {[%emt 0:00:04]} 106. Qb5+ {[%emt 0:00:08]} Kc2 {[%emt 0:00:09]} 107. Qf5+ {[%emt 0:00:58]} Kb3 {[%emt 0:00:05] Blacks defense is rewarded with a draw.  Weighted Error Value: White=0.14 (very precise) /Black=0.22 (precise)} 1/2-1/2

[Event "1st Serbian League 2022"]
[Site "Vrnjacka Banja"]
[Date "2022.09.28"]
[Round "9.26"]
[White "Gurel, Ediz"]
[Black "Djokic, Mihailo"]
[Result "1-0"]
[ECO "B76"]
[WhiteElo "2437"]
[BlackElo "2197"]
[Annotator "TA"]
[PlyCount "55"]
[EventDate "2022.09.20"]
[EventType "team-tourn"]
[EventCountry "SRB"]
[SourceTitle "playchess.com"]
[Source "ChessBase"]
[SourceQuality "1"]
[TimeControl "40/5400+30:1800+30"]

{[%evp 21,55,75,132,112,171,169,165,166,177,170,168,168,254,248,334,252,262,245,250,210,358,310,337,311,372,340,494,494,494,491,29993,29994,29996,29997,29997,-220]} 1. e4 {[%emt 0:00:04]} c5 {[%emt 0:00:03]} 2. Nf3 {[%emt 0:00:04]} d6 {[%emt 0:00:05]} 3. d4 {[%emt 0:00:07]} cxd4 {[%emt 0:00:04]} 4. Nxd4 {[%emt 0:00:03]} Nf6 {[%emt 0:00:03]} 5. Nc3 {[%emt 0:00:06]} g6 {[%emt 0:00:01]} 6. Be3 {[%emt 0:00:20]} Bg7 {[%emt 0:00:05]} 7. f3 {[%emt 0:00:17]} O-O {[%emt 0:00:06]} 8. Qd2 {[%emt 0:00:02]} Nc6 {[%emt 0:00:05]} 9. O-O-O {[%emt 0:00:06]} Bd7 {[%emt 0:00:02]} 10. g4 {[%emt 0:00:57]} Rc8 {[%emt 0:00:05]} 11. Kb1 {[%emt 0:01:11]} Ne5 {[%emt 0:00:34]} ({Better is} 11... h5) 12. Be2 $16 {[%emt 0:00:32] B76: Sicilian Dragon: Yugoslav Attack, 9 g4 and 9 0-0-0.} h5 {[%emt 0:08:39]} (12... Nc4 $16 13. Bxc4 Rxc4) 13. gxh5 $18 {[%emt 0:03:16]} Nxh5 {[%emt 0:00:05]} 14. f4 {[%emt 0:07:15] White is clearly better.} Nc4 {[%emt 0:00:49]} 15. Bxc4 {[%emt 0:00:40]} Rxc4 {[%emt 0:00:05]} 16. f5 {[%emt 0:00:17] [#]} Kh7 $146 {[%emt 0:01:17]} (16... Qa5 {was called for.}) ({Predecessor:} 16... b5 17. Rhg1 b4 18. Nce2 Kh7 19. Qd3 Rc8 20. Rg4 Be5 21. Nf3 Qa5 22. Nxe5 Qxe5 23. Nd4 Rg8 24. Qe2 Kg7 25. Ne6+ {1-0 (25) Elena,E (1712)-Silvera,P (1410) Montevideo 2022}) 17. Rhg1 {[%emt 0:04:03]} Rc8 {[%emt 0:01:41]} 18. fxg6+ {[%emt 0:11:31]} fxg6 {[%emt 0:00:06]} 19. Nd5 {[%emt 0:04:13] Threatens to win with Qg2.} ({Don't play} 19. Qg2 $6 Qe8 20. Nd5 e5 $16) 19... Qe8 {[%emt 0:06:39]} 20. Qg2 {[%emt 0:04:10][%cal Od5e7] And now Nxe7! would win.} Nf6 {[%emt 0:06:31] [#]} (20... Kg8 {was necessary.} 21. Ne2 Be6 22. Qxg6 Bxd5 23. exd5 Qxg6 24. Rxg6 Rf5 25. Bxa7 Kf7) 21. Nf5 $1 {[%emt 0:06:30][%mdl 512]} Nxd5 {[%emt 0:01:17]} 22. Rxd5 {[%emt 0:00:01] The board is on fire.} Rf6 {[%emt 0:08:06]} 23. Bd4 {[%emt 0:05:09]} e5 {[%emt 0:03:53]} (23... Bxf5 $142 24. Bxf6 (24. exf5 e5 $18) 24... Bxe4 25. Qxe4 exf6 26. Qh4+ Kg8 27. Rxd6 Rc6) 24. Nxd6 {[%emt 0:00:34]} Rxd6 {[%emt 0:03:35]} 25. Rxd6 {[%emt 0:00:01][%cal Bd5d6,Bd6g6,Bg6g7,Bg7h7][%mdl 32]} exd4 {[%emt 0:02:30]} (25... Rc6 $18 26. Rxc6 Bxc6 27. Bxa7 Bh6) 26. Rxg6 {[%emt 0:00:05] White mates.} Bf8 {[%emt 0:02:33] [#]} 27. Rg7+ $1 {[%emt 0:00:17][%mdl 512]} Kh8 {[%emt 0:00:06] [#]} 28. Rh7+ $3 {[%emt 0:00:05][%mdl 33280] White took control after the opening.  Weighted Error Value: White=0.11 (very precise) /Black=0.88. Loss on time!?} 1-0